bitfinex/quotes_ETHUSD_20250920
["timestamp","ask_amount","ask_price","bid_price","bid_amount"]
[1758372235102,14.31754465,4472.4,4472.1,0.2538]
[1758372237868,14.31754465,4472.4,4472.1,0.011]
[1758372238907,14.31753642,4472.4,4472.1,0.011]
[1758372241603,14.31760956,4472.4,4472.1,0.011]
[1758372245041,10.61660956,4472.4,4472.1,0.011]
[1758372245202,14.31760956,4472.4,4472.1,0.011]
[1758372246115,9.27033538,4472.4,4472.3,0.2298]
[1758372246741,9.27033538,4472.4,4472.3,0.001]
[1758372246942,5.57033538,4472.4,4472.3,0.001]
[1758372247151,9.27133538,4472.4,4472.3,0.2298]
[1758372249444,9.27133538,4472.4,4472.3,0.001]
[1758372254051,5.57033538,4472.4,4472.3,0.001]
[1758372254356,9.27133538,4472.4,4472.3,0.001]
[1758372255727,13.5444215,4472.4,4472.3,0.001]
[1758372257261,13.54457348,4472.4,4472.3,0.001]
[1758372258292,5.57048736,4472.4,4472.3,0.001]
[1758372258565,9.27148736,4472.4,4472.3,0.2438]
[1758372259351,9.27148736,4472.4,4472.3,0.001]
[1758372259941,5.57048736,4472.4,4472.3,0.001]
[1758372260254,5.80648736,4472.4,4472.3,0.001]
[1758372260766,5.57048736,4472.4,4472.3,0.001]
[1758372261261,5.5708475,4472.4,4472.3,0.001]
[1758372270275,5.8068475,4472.4,4472.3,0.001]
[1758372270786,5.5708475,4472.4,4472.3,0.001]
[1758372273094,5.57084743,4472.4,4472.3,0.001]
[1758372280883,5.80684743,4472.4,4472.3,0.001]
[1758372283002,5.57084743,4472.4,4472.3,0.001]
[1758372284110,9.27084743,4472.4,4472.3,0.001]
[1758372292776,9.49864743,4472.4,4472.3,0.001]
[1758372293668,9.27084743,4472.4,4472.3,0.001]
[1758372296464,8.93593596,4472.4,4472.3,0.001]
[1758372296636,9.27088172,4472.4,4472.3,0.001]
[1758372301037,5.57088172,4472.4,4472.3,0.2428]
[1758372301735,3.33494576,4472.4,4472.3,0.2428]
[1758372302143,5.57088172,4472.4,4472.3,0.2428]
[1758372302345,5.36154062,4472.4,4472.3,0.2428]
[1758372303161,5.57075561,4472.4,4472.3,0.2428]
[1758372303423,5.57071945,4472.4,4472.3,0.001]
[1758372303567,9.84380557,4472.4,4472.3,0.001]
[1758372303748,10.08900557,4472.4,4472.3,0.001]
[1758372304385,9.84380557,4472.4,4472.3,0.001]
[1758372305669,10.08900557,4472.4,4472.3,0.001]
[1758372313894,9.84380557,4472.4,4472.3,0.001]
[1758372314298,10.08740557,4472.4,4472.3,0.001]
[1758372317827,5.81431945,4472.4,4472.3,0.001]
[1758372318226,5.57071945,4472.4,4472.3,0.001]
[1758372318459,5.81431945,4472.4,4472.3,0.001]
[1758372319562,5.57071945,4472.4,4472.3,0.001]
[1758372320562,5.81431945,4472.4,4472.3,0.001]
[1758372322262,5.57071945,4472.4,4472.3,0.001]
[1758372322651,5.81431945,4472.4,4472.3,0.001]
[1758372322963,5.57071945,4472.4,4472.3,0.001]
[1758372323335,5.57071945,4472.4,4472.3,0.2319]
[1758372327542,5.57071945,4472.4,4472.3,0.001]
[1758372332372,5.57071945,4472.4,4472.3,0.2319]
[1758372332871,5.57071945,4472.4,4472.3,0.001]
[1758372342304,5.57070456,4472.4,4472.3,0.001]
[1758372350308,5.81370456,4472.4,4472.3,0.001]
[1758372358083,5.81365657,4472.4,4472.3,0.001]
[1758372361028,5.81370285,4472.4,4472.3,0.001]
[1758372362917,9.51370285,4472.4,4472.3,0.001]
[1758372372130,5.81370285,4472.4,4472.3,0.001]
[1758372373921,5.57070285,4472.4,4472.3,0.001]
[1758372374431,5.57070285,4472.4,4472.3,0.238]
[1758372374956,5.57070285,4472.4,4472.3,0.001]
[1758372375154,5.57070285,4472.4,4472.3,0.238]
[1758372375348,5.57070285,4472.4,4472.3,0.001]
[1758372375740,5.57070285,4472.4,4472.3,0.238]
[1758372377768,9.84374037,4472.4,4472.3,0.238]
[1758372378266,9.84374037,4472.4,4472.3,0.001]
[1758372384370,10.08464037,4472.4,4472.3,0.001]
[1758372392262,10.08466077,4472.4,4472.3,0.001]
[1758372397588,5.23598595,4472.3,4471.8,0.001]
[1758372397887,9.50922348,4471.9,4471.8,0.001]
[1758372398088,9.84401077,4471.9,4471.8,0.001]
[1758372408252,9.84401077,4471.9,4471.8,0.2438]
[1758372409055,9.84401077,4471.9,4471.8,0.001]
[1758372409354,9.84395212,4471.9,4471.8,0.001]
[1758372415841,9.84403075,4471.9,4471.8,0.001]
[1758372417565,10.06913075,4471.9,4471.8,0.001]
[1758372418093,9.84403075,4471.9,4471.8,0.001]
[1758372419703,9.84403826,4471.9,4471.8,0.001]
[1758372427506,5.57100074,4471.9,4471.8,0.001]
[1758372427703,9.84403826,4471.9,4471.8,0.001]
[1758372437818,5.57100074,4471.9,4471.8,0.001]
[1758372439175,5.57100074,4471.9,4471.8,0.2368]
[1758372440011,5.57100074,4471.9,4471.8,0.001]
[1758372461792,5.5710193,4471.9,4471.8,0.001]
[1758372465692,5.57099436,4471.9,4471.8,0.001]
[1758372478241,5.81219436,4471.9,4471.8,0.001]
[1758372479236,5.57099436,4471.9,4471.8,0.001]
[1758372480452,5.81219436,4471.9,4471.8,0.001]
[1758372488712,5.57099436,4471.9,4471.8,0.001]
[1758372490630,5.79969436,4471.9,4471.8,0.001]
[1758372493350,5.57099436,4471.9,4471.8,0.001]
[1758372501082,5.5712878,4471.9,4471.8,0.001]
[1758372505488,5.5712878,4471.9,4471.8,0.2366]
[1758372506084,5.5712878,4471.9,4471.8,0.001]
[1758372510626,3.33510184,4471.9,4471.8,0.001]
[1758372510773,0.33510184,4471.9,4471.8,4.36039628]
[1758372510973,2.36173939,4471.9,4471.8,4.36039628]
[1758372512104,2.36173939,4471.9,4471.8,4.12479628]
[1758372514533,2.36173939,4471.9,4471.8,4.14715863]
[1758372523235,2.36178732,4471.9,4471.8,4.14715863]
[1758372526455,2.36178732,4471.9,4471.8,3.72336235]
[1758372541187,2.36178732,4471.9,4471.8,3.701]
[1758372543689,0.12560136,4471.9,4471.8,3.701]
[1758372543922,0.12560136,4471.9,4471.8,8.72106231]
[1758372544065,0.12560136,4471.9,4471.8,8.47199996]
[1758372544273,0.12560136,4471.9,4471.8,9.34186996]
[1758372548881,2.36178732,4471.9,4471.8,9.34186996]
[1758372549478,2.36186113,4471.9,4471.8,9.34186996]
[1758372553273,2.23618596,4471.9,4471.8,8.47199996]
[1758372553472,2.36185735,4471.9,4471.8,8.47199996]
[1758372555459,2.59365735,4471.9,4471.8,7.67999996]
[1758372555930,2.59365735,4471.9,4471.8,3.701]
[1758372565110,2.36184845,4471.9,4471.8,3.701]
[1758372566238,2.59364845,4471.9,4471.8,3.701]
[1758372569047,2.59364428,4471.9,4471.8,3.701]
[1758372569646,2.36184428,4471.9,4471.8,3.701]
[1758372579666,0.12565832,4471.9,4471.8,4.40024556]
[1758372579863,2.36184428,4471.9,4471.8,4.40024556]
[1758372580252,0.12565832,4471.9,4471.8,4.40024556]
[1758372580476,2.36184428,4471.9,4471.8,4.40024556]
[1758372580959,0.12569237,4471.9,4471.8,4.40024556]
[1758372581882,2.36187833,4471.9,4471.8,4.40024556]
[1758372583391,0.12569237,4471.9,4471.8,4.15744556]
[1758372583570,0.12569237,4471.9,4471.8,5.19224556]
[1758372584697,0.12569237,4471.9,4471.8,4.94944556]
[1758372584898,2.90856254,4472.0,4471.8,4.94944556]
[1758372585100,0.67241884,4472.0,4471.9,1.7306064]
[1758372585307,0.79810337,4472.0,4471.9,1.9646064]
[1758372585771,0.79810337,4472.0,4471.9,1.7306064]
[1758372587306,0.67241884,4472.0,4471.9,1.7306064]
[1758372588366,0.67241884,4472.0,4471.9,5.70960636]
[1758372588581,0.67241884,4472.0,4471.9,5.68724451]
[1758372588775,0.002,4472.1,4471.9,5.68724451]
[1758372589032,0.002,4472.1,4472.0,5.52123036]
[1758372589178,0.002,4472.1,4472.0,5.49886901]
[1758372589702,0.67422446,4472.1,4472.0,5.49886901]
[1758372593723,0.67422446,4472.1,4472.0,9.71186897]
[1758372594102,0.002,4472.1,4472.0,9.71186897]
[1758372594688,0.002,4472.1,4472.0,5.49886901]
[1758372594989,0.002,4472.1,4472.0,9.71186897]
[1758372597820,0.002,4472.1,4472.0,11.71400492]
[1758372598230,0.002,4472.1,4472.0,11.94800492]
[1758372605933,0.002,4472.1,4472.0,9.71186897]
[1758372606230,0.002,4472.1,4472.0,11.94800492]
[1758372610249,0.002,4472.1,4472.0,12.039624]
[1758372613920,0.002,4472.1,4472.0,12.040624]
[1758372615756,0.002,4472.1,4472.0,11.806624]
[1758372621225,0.002,4472.1,4472.0,12.047724]
[1758372622785,0.002,4472.1,4472.0,11.806624]
[1758372636392,0.2456,4472.1,4472.0,9.56948805]
[1758372636778,0.2456,4472.1,4472.0,9.47786897]
[1758372638492,0.2456,4472.1,4472.0,11.71400492]
[1758372639508,0.2456,4472.1,4472.0,9.47786897]
[1758372640933,0.2456,4472.1,4472.0,11.71400492]
[1758372641408,0.002,4472.1,4472.0,13.64800492]
[1758372642429,0.2456,4472.1,4472.0,13.64800492]
[1758372643017,0.002,4472.1,4472.0,13.64800492]
[1758372649440,0.2502,4472.1,4472.0,11.41186897]
[1758372653218,0.2502,4472.1,4472.0,13.64800492]
[1758372654752,0.002,4472.1,4472.0,13.64800492]
[1758372661472,0.002,4472.1,4472.0,11.41186897]
[1758372661842,0.002,4472.1,4472.0,10.40399996]
[1758372662141,0.2502,4472.1,4472.0,10.40399996]
[1758372663048,0.2502,4472.1,4472.0,12.64013591]
[1758372663269,0.002,4472.1,4472.0,12.64013591]
[1758372671492,0.002,4472.1,4472.0,10.40399996]
[1758372675607,0.2394,4472.1,4472.0,6.70599996]
[1758372675907,0.2394,4472.1,4472.0,10.40399996]
[1758372684551,2.47548595,4472.1,4472.0,10.40399996]
[1758372686992,0.2394,4472.1,4472.0,10.40399996]
[1758372688151,0.002,4472.1,4472.0,10.40399996]
[1758372689752,0.2394,4472.1,4472.0,10.40399996]
[1758372691295,2.47548595,4472.1,4472.0,10.40399996]
[1758372699667,2.47548595,4472.1,4472.0,1.935]
[1758372699861,2.6011099,4472.1,4472.0,5.633]
[1758372700083,3.27339312,4472.1,4472.0,5.633]
[1758372703599,3.27339312,4472.1,4472.0,1.935]
[1758372703784,6.48278899,4472.1,4472.0,5.633]
[1758372708816,6.24538899,4472.1,4472.0,5.633]
[1758372709112,6.49428899,4472.1,4472.0,5.633]
[1758372720497,11.5411021,4472.1,4472.0,5.633]
[1758372720711,11.2922021,4472.1,4472.0,5.633]
[1758372722934,11.5357021,4472.1,4472.0,5.633]
[1758372723142,11.2922021,4472.1,4472.0,5.633]
[1758372725143,11.2922021,4472.1,4472.0,1.935]
[1758372725307,11.2922021,4472.1,4472.0,5.633]
[1758372726337,11.2922021,4472.1,4472.0,5.8637]
[1758372726763,6.24538899,4472.1,4472.0,5.8637]
[1758372727048,3.24517723,4472.1,4472.0,5.8637]
[1758372727399,3.03599312,4472.1,4472.0,5.8637]
[1758372727902,2.3637099,4472.1,4472.0,5.8637]
[1758372731341,2.3637099,4472.1,4472.0,5.633]
[1758372732660,2.6072099,4472.1,4472.0,1.935]
[1758372732971,2.6072099,4472.1,4472.0,5.633]
[1758372733678,2.6072099,4472.1,4472.0,9.61199996]
[1758372734179,2.3637099,4472.1,4472.0,9.61199996]
[1758372739610,2.3637099,4472.1,4472.0,5.633]
[1758372745689,2.3637099,4472.1,4472.0,9.61199996]
[1758372751416,2.3637099,4472.1,4472.0,5.633]
[1758372757449,2.3637099,4472.1,4472.0,9.61199996]
[1758372763479,2.3637099,4472.1,4472.0,5.633]
[1758372763778,2.3637099,4472.1,4472.0,6.425]
[1758372769284,2.3637099,4472.1,4472.0,10.40399996]
[1758372776351,2.5985099,4472.1,4472.0,10.40399996]
[1758372779118,2.3637099,4472.1,4472.0,10.40399996]
[1758372781500,2.3637099,4472.1,4472.0,8.46999996]
[1758372784504,2.36376232,4472.1,4472.0,8.46999996]
[1758372785241,0.12767637,4472.1,4472.0,8.46999996]
[1758372785421,2.36376232,4472.1,4472.0,8.46999996]
[1758372791227,0.12767637,4472.1,4472.0,8.46999996]
[1758372792621,0.12767637,4472.1,4472.0,8.71279996]
[1758372793128,0.12767637,4472.1,4472.0,8.46999996]
[1758372793319,2.36376232,4472.1,4472.0,8.46999996]
[1758372793515,0.12767637,4472.1,4472.0,8.46999996]
[1758372793818,0.12767637,4472.1,4472.0,9.26124401]
[1758372794541,0.12767637,4472.1,4472.0,9.01844401]
[1758372795122,0.002,4472.1,4472.0,9.25224401]
[1758372795325,0.12767637,4472.1,4472.0,9.25224401]
[1758372795865,0.12767637,4472.1,4472.0,9.01844401]
[1758372799152,0.002,4472.1,4472.0,9.01844401]
[1758372799452,0.12762419,4472.1,4472.0,8.46999996]
[1758372800553,2.36371014,4472.1,4472.0,8.46999996]
[1758372801248,0.12762419,4472.1,4472.0,8.46999996]
[1758372804075,0.1276143,4472.1,4472.0,8.46999996]
[1758372810683,0.79981317,4472.1,4472.0,8.46999996]
[1758372813297,0.67419887,4472.1,4472.0,8.46999996]
[1758372813997,0.67419887,4472.1,4472.0,4.77199996]
[1758372814163,0.67419887,4472.1,4472.0,8.46999996]
[1758372816216,2.91028482,4472.1,4472.0,8.46999996]
[1758372816995,3.03596992,4472.1,4472.0,8.46999996]
[1758372818384,3.03597789,4472.1,4472.0,8.46999996]
[1758372820608,3.03599582,4472.1,4472.0,8.46999996]
[1758372828326,3.03603722,4472.1,4472.0,8.46999996]
[1758372830692,0.79995127,4472.1,4472.0,8.46999996]
[1758372830997,3.03603722,4472.1,4472.0,8.46999996]
[1758372840505,0.79995127,4472.1,4472.0,4.491]
[1758372842040,3.03603722,4472.1,4472.0,4.491]
[1758372842939,0.79995127,4472.1,4472.0,4.491]
[1758372843940,0.79995127,4472.1,4472.0,4.7338]
[1758372844135,0.79995127,4472.1,4472.0,5.79858]
[1758372844636,0.79995127,4472.1,4472.0,5.55578]
[1758372844855,0.79995127,4472.1,4472.0,4.491]
[1758372855365,3.03603722,4472.1,4472.0,4.491]
[1758372855742,0.79995127,4472.1,4472.0,4.491]
[1758372857465,3.03603722,4472.1,4472.0,4.491]
[1758372857666,0.79995127,4472.1,4472.0,4.491]
[1758372857966,3.26283722,4472.1,4472.0,0.793]
[1758372858139,3.26283722,4472.1,4472.0,3.699]
[1758372862995,6.26283722,4472.1,4472.0,0.001]
[1758372863156,6.4722617,4472.1,4472.0,3.699]
[1758372863890,10.74582036,4472.1,4472.0,3.699]
[1758372864293,10.53639588,4472.1,4472.0,3.699]
[1758372871858,10.74569779,4472.1,4472.0,3.699]
[1758372874701,10.74568788,4472.1,4472.0,3.699]
[1758372886419,6.24532922,4472.1,4472.0,3.699]
[1758372886957,6.03603722,4472.1,4472.0,3.699]
[1758372887332,6.24558678,4472.1,4472.0,3.699]
[1758372898510,6.24566332,4472.1,4472.0,3.699]
[1758372901187,6.24566332,4472.1,4472.0,3.9417]
[1758372901381,6.03603722,4472.1,4472.0,3.9417]
[1758372901776,3.24565143,4472.1,4472.0,4.491]
[1758372904680,3.03603722,4472.1,4472.0,4.491]
[1758372908882,3.03603722,4472.1,4472.0,0.793]
[1758372909083,3.03603722,4472.1,4472.0,4.491]
[1758372909381,3.03603722,4472.1,4472.0,5.5315]
[1758372913062,3.03599161,4472.1,4472.0,5.5315]
[1758372914559,3.03599161,4472.1,4472.0,4.491]
[1758372929060,3.0360419,4472.1,4472.0,4.491]
[1758372930431,3.0360419,4472.1,4472.0,0.793]
[1758372930638,3.24565922,4472.1,4472.0,4.491]
[1758372931776,3.0360419,4472.1,4472.0,4.491]
[1758372933484,0.79995595,4472.1,4472.0,4.491]
[1758372933653,0.79995595,4472.1,4472.0,5.3764]
[1758372936600,0.79995595,4472.1,4472.0,5.1336]
[1758372936762,0.12775708,4472.1,4472.0,5.3764]
[1758372936968,0.002,4472.1,4472.0,5.3764]
[1758372941296,0.002,4472.1,4472.0,9.35539996]
[1758372947697,0.002,4472.1,4472.0,9.11259996]
[1758372949610,0.002,4472.1,4472.0,11.59153591]
[1758372953123,0.002,4472.1,4472.0,9.35539996]
[1758372954822,0.002,4472.1,4472.0,9.11259996]
[1758372971896,0.002,4472.1,4472.0,11.34873591]
[1758372972276,0.002,4472.1,4472.0,9.11259996]
[1758372982515,0.002,4472.1,4472.0,11.34873591]
[1758372983015,0.002,4472.1,4472.0,11.57753591]
[1758372983621,0.002,4472.1,4472.0,9.11259996]
[1758372983859,0.002,4472.1,4472.0,11.34873591]
[1758372984334,0.002,4472.1,4472.0,9.11259996]
[1758372993872,0.002,4472.1,4472.0,11.34873591]
[1758372996571,0.002,4472.1,4472.0,9.11259996]
[1758372997649,0.002,4472.1,4472.0,11.04659996]
[1758373002968,0.002,4472.1,4472.0,13.28273591]
[1758373007168,0.002,4472.1,4472.0,11.04659996]
[1758373008370,0.002,4472.1,4472.0,13.28273591]
[1758373012478,0.002,4472.1,4472.0,9.30373595]
[1758373016390,0.002,4472.1,4472.0,9.54463595]
[1758373017689,0.002,4472.1,4472.0,9.30373595]
[1758373017892,0.002,4472.1,4472.0,9.54463595]
[1758373018851,0.002,4472.1,4472.0,9.634245]
[1758373021504,0.002,4472.1,4472.0,16.61324496]
[1758373026481,0.002,4472.1,4472.0,17.06642257]
[1758373036926,0.002,4472.1,4472.0,13.12752257]
[1758373037232,0.002,4472.1,4472.0,21.09452854]
[1758373040027,0.19857824,4472.5,4472.4,3.02793596]
[1758373040217,0.002,4472.6,4472.5,3.02788596]
[1758373040716,0.002,4472.6,4472.5,3.11747995]
[1758373042034,0.2282,4472.6,4472.5,3.11747995]
[1758373045016,0.2282,4472.6,4472.5,7.09647991]
[1758373046338,0.2282,4472.6,4472.5,13.13947991]
[1758373046538,0.2282,4472.6,4472.5,15.32286116]
[1758373048736,0.2282,4472.6,4472.5,19.01886116]
[1758373050944,0.2282,4472.6,4472.5,18.92926717]
[1758373055048,0.2282,4472.6,4472.5,15.23326717]
[1758373055248,0.2282,4472.6,4472.5,18.92926717]
[1758373060452,0.002,4472.6,4472.5,18.92926717]
[1758373067065,0.002,4472.6,4472.5,18.90983684]
[1758373070383,0.002,4472.6,4472.5,20.84283684]
[1758373077940,0.2325,4472.6,4472.5,20.84283684]
[1758373080535,0.2325,4472.6,4472.5,20.84183684]
[1758373082776,0.2325,4472.6,4472.5,20.84283684]
[1758373084848,0.2325,4472.6,4472.5,17.14783684]
[1758373085047,0.2325,4472.6,4472.5,20.84283684]
[1758373089693,0.2357,4472.6,4472.5,20.84283684]
[1758373092736,0.002,4472.6,4472.5,17.14783684]
[1758373092992,0.2357,4472.6,4472.5,15.65099996]
[1758373093288,0.2357,4472.6,4472.5,16.44299996]
[1758373093994,0.2357,4472.6,4472.5,12.74799996]
[1758373094191,0.2357,4472.6,4472.5,16.44299996]
[1758373098498,0.2357,4472.6,4472.5,12.464]
[1758373100381,0.2357,4472.6,4472.5,14.69988596]
[1758373100996,0.2357,4472.6,4472.5,12.464]
[1758373102120,0.2357,4472.6,4472.5,8.769]
[1758373102326,0.2357,4472.6,4472.5,12.465]
[1758373110540,0.2357,4472.6,4472.5,14.70088596]
[1758373110937,0.2357,4472.6,4472.5,12.465]
[1758373111113,0.9077528,4472.6,4472.5,12.465]
[1758373113142,0.6740528,4472.6,4472.5,14.70088596]
[1758373114943,0.6740528,4472.6,4472.5,12.465]
[1758373115634,0.6740528,4472.6,4472.5,14.70088596]
[1758373118234,0.6740528,4472.6,4472.5,12.465]
[1758373121940,0.6740528,4472.6,4472.5,8.769]
[1758373122141,0.6740528,4472.6,4472.5,14.70088596]
[1758373122340,0.6740528,4472.6,4472.5,11.00488596]
[1758373122541,0.6740528,4472.6,4472.5,14.70088596]
[1758373133586,0.6740528,4472.6,4472.5,12.465]
[1758373134055,0.9192528,4472.6,4472.5,12.465]
[1758373143312,0.6740528,4472.6,4472.5,12.465]
[1758373143877,0.6740528,4472.6,4472.5,6.422]
[1758373155645,0.6740528,4472.6,4472.5,2.726]
[1758373155848,0.6740528,4472.6,4472.5,6.422]
[1758373172481,0.6740528,4472.6,4472.5,2.726]
[1758373172682,0.6740528,4472.6,4472.5,6.422]
[1758373179208,0.6740528,4472.6,4472.5,8.65788596]
[1758373184482,0.6740528,4472.6,4472.5,6.422]
[1758373185202,0.6740528,4472.6,4472.5,4.96188596]
[1758373185382,0.6740528,4472.6,4472.5,8.65788596]
[1758373188703,0.6740528,4472.6,4472.5,8.88828596]
[1758373189399,0.6740528,4472.6,4472.5,8.65788596]
[1758373189601,0.6740528,4472.6,4472.5,8.88828596]
[1758373190172,0.6740528,4472.6,4472.5,8.65788596]
[1758373193616,0.6740528,4472.6,4472.5,6.422]
[1758373199537,0.6740528,4472.6,4472.5,8.65788596]
[1758373200921,0.6740528,4472.6,4472.5,6.422]
[1758373202016,0.9227528,4472.6,4472.5,6.421]
[1758373203595,0.6740528,4472.6,4472.5,2.726]
[1758373203804,0.9227528,4472.6,4472.5,6.421]
[1758373204721,3.15858877,4472.6,4472.5,2.726]
[1758373204907,0.9227528,4472.6,4472.5,6.421]
[1758373205085,3.15858877,4472.6,4472.5,6.421]
[1758373208924,3.15858877,4472.6,4472.5,2.726]
[1758373209093,3.15858877,4472.6,4472.5,6.421]
[1758373220260,0.9227528,4472.6,4472.5,6.421]
[1758373221571,0.9227528,4472.6,4472.5,2.726]
[1758373221743,0.9227528,4472.6,4472.5,6.422]
[1758373222077,3.15858877,4472.6,4472.5,6.422]
[1758373222381,0.9227528,4472.6,4472.5,6.422]
[1758373224681,3.15858877,4472.6,4472.5,6.422]
[1758373226284,0.9227528,4472.6,4472.5,6.422]
[1758373227377,0.6740528,4472.6,4472.5,6.422]
[1758373228058,0.6740528,4472.6,4472.5,6.6522]
[1758373229883,0.6740528,4472.6,4472.5,6.422]
[1758373231385,2.90988877,4472.6,4472.5,6.422]
[1758373232047,0.6740528,4472.6,4472.5,6.422]
[1758373232483,0.6740528,4472.6,4472.5,2.726]
[1758373232680,0.6740528,4472.6,4472.5,6.422]
[1758373234052,0.79974429,4472.6,4472.5,6.422]
[1758373235189,0.79862636,4472.6,4472.5,6.422]
[1758373236590,3.03446233,4472.6,4472.5,6.422]
[1758373244186,0.79862636,4472.6,4472.5,6.422]
[1758373244805,3.03446233,4472.6,4472.5,6.422]
[1758373246172,0.79862636,4472.6,4472.5,6.422]
[1758373248914,0.67293487,4472.6,4472.5,6.422]
[1758373249508,0.67293487,4472.6,4472.5,2.726]
[1758373249710,0.67293487,4472.6,4472.5,6.422]
[1758373251314,0.67293487,4472.6,4472.5,2.726]
[1758373251514,0.67293487,4472.6,4472.5,6.422]
[1758373253221,0.67293487,4472.6,4472.5,2.726]
[1758373253430,0.67293487,4472.6,4472.5,6.422]
[1758373253816,0.67293487,4472.6,4472.5,2.726]
[1758373253992,0.67293487,4472.6,4472.5,6.422]
[1758373254410,0.67293487,4472.6,4472.5,7.3116]
[1758373254617,0.67293487,4472.6,4472.5,6.6694]
[1758373257136,0.67293487,4472.6,4472.5,6.422]
[1758373260539,2.90877084,4472.6,4472.5,6.422]
[1758373260864,3.13447084,4472.6,4472.5,6.422]
[1758373261028,3.13447084,4472.6,4472.5,2.726]
[1758373261225,3.26016032,4472.6,4472.5,6.422]
[1758373261424,3.26016032,4472.6,4472.5,2.726]
[1758373261666,3.26016032,4472.6,4472.5,1.934]
[1758373261866,3.26016032,4472.6,4472.5,5.63]
[1758373263363,6.26016032,4472.6,4472.5,1.934]
[1758373263564,6.46948898,4472.6,4472.5,5.63]
[1758373264341,6.26016032,4472.6,4472.5,5.63]
[1758373267464,6.26016032,4472.6,4472.5,1.934]
[1758373267765,6.26016032,4472.6,4472.5,5.63]
[1758373269368,10.53154546,4472.6,4472.5,5.63]
[1758373272769,10.30584546,4472.6,4472.5,5.63]
[1758373273757,6.03446032,4472.6,4472.5,5.63]
[1758373274179,6.03446032,4472.6,4472.5,5.8781]
[1758373277688,6.03446032,4472.6,4472.5,5.63]
[1758373277911,6.03446032,4472.6,4472.5,1.934]
[1758373278131,6.03446032,4472.6,4472.5,5.631]
[1758373278425,3.79862435,4472.6,4472.5,6.6711]
[1758373278988,3.79862435,4472.6,4472.5,6.423]
[1758373279217,6.03446032,4472.6,4472.5,6.423]
[1758373291318,5.36240752,4472.6,4472.5,6.423]
[1758373293055,5.36232491,4472.6,4472.5,6.423]
[1758373298526,3.12648894,4472.6,4472.5,6.423]
[1758373298730,0.12648894,4472.6,4472.5,6.423]
[1758373299108,0.12648894,4472.6,4472.5,6.6711]
[1758373300649,0.12648894,4472.6,4472.5,6.423]
[1758373303045,2.36232491,4472.6,4472.5,6.423]
[1758373304115,0.12648894,4472.6,4472.5,6.423]
[1758373305936,2.36232491,4472.6,4472.5,6.423]
[1758373307551,2.36232491,4472.6,4472.5,6.422]
[1758373310788,0.12648894,4472.6,4472.5,6.422]
[1758373311766,0.12648894,4472.6,4472.5,2.726]
[1758373312066,2.36232491,4472.6,4472.5,6.422]
[1758373313329,2.61122491,4472.6,4472.5,6.422]
[1758373316668,2.48561804,4472.6,4472.5,6.422]
[1758373316875,2.61128423,4472.6,4472.5,6.422]
[1758373317748,2.61128423,4472.6,4472.5,4.489]
[1758373320299,2.36238423,4472.6,4472.5,4.489]
[1758373320578,2.61128423,4472.6,4472.5,0.793]
[1758373320785,2.61128423,4472.6,4472.5,4.489]
[1758373321484,2.61128423,4472.6,4472.5,0.001]
[1758373321791,5.61128423,4472.6,4472.5,3.698]
[1758373321963,6.28347405,4472.6,4472.5,3.698]
[1758373322788,6.28347405,4472.6,4472.5,0.001]
[1758373322982,6.28347405,4472.6,4472.5,3.698]
[1758373323192,6.49290268,4472.6,4472.5,3.698]
[1758373324390,6.28347405,4472.6,4472.5,3.698]
[1758373325183,6.49284029,4472.6,4472.5,3.7]
[1758373327509,6.28347405,4472.6,4472.5,3.7]
[1758373329297,6.28347405,4472.6,4472.5,0.001]
[1758373329496,6.49270159,4472.6,4472.5,0.001]
[1758373331233,6.49249508,4472.6,4472.5,0.001]
[1758373355676,8.84849508,4472.6,4472.5,0.001]
[1758373355879,10.76569258,4472.6,4472.5,0.001]
[1758373358772,10.76552142,4472.6,4472.5,0.001]
[1758373360192,10.76553112,4472.6,4472.5,0.001]
[1758373363504,10.74283112,4472.6,4472.5,0.001]
[1758373363821,10.74277581,4472.6,4472.5,0.001]
[1758373367708,11.45551354,4472.6,4472.5,0.001]
[1758373373634,11.22931354,4472.6,4472.5,0.001]
[1758373375134,11.45601354,4472.6,4472.5,0.001]
[1758373378778,11.22931354,4472.6,4472.5,0.001]
[1758373380374,11.45601354,4472.6,4472.5,0.001]
[1758373382964,11.22931354,4472.6,4472.5,0.001]
[1758373383274,14.92831354,4472.6,4472.5,0.001]
[1758373388403,15.17621354,4472.6,4472.5,0.001]
[1758373389119,6.24337831,4472.6,4472.5,0.001]
[1758373389412,6.24337831,4472.6,4472.5,0.2469]
[1758373389995,11.22931354,4472.6,4472.5,0.2469]
[1758373390304,11.2294045,4472.6,4472.5,0.001]
[1758373393210,11.2295203,4472.6,4472.5,0.001]
[1758373395021,11.2295203,4472.6,4472.5,0.2406]
[1758373398180,11.2295203,4472.6,4472.5,0.001]
[1758373398618,11.2295203,4472.6,4472.5,0.2406]
[1758373399428,6.24358507,4472.6,4472.5,0.001]
[1758373399582,6.24358507,4472.6,4472.5,0.2406]
[1758373401099,6.24352453,4472.6,4472.5,0.2406]
[1758373408688,6.24345738,4472.6,4472.5,0.2406]
[1758373413780,6.24345738,4472.6,4472.5,0.001]
[1758373415147,6.03441181,4472.6,4472.5,0.001]
[1758373415352,6.24344575,4472.6,4472.5,0.001]
[1758373416238,6.24344575,4472.6,4472.5,0.2406]
[1758373417171,6.24347634,4472.6,4472.5,0.2406]
[1758373419159,6.24347634,4472.6,4472.5,0.001]
[1758373420540,6.47487634,4472.6,4472.5,0.001]
[1758373420941,6.47493274,4472.6,4472.5,0.001]
[1758373421638,6.24353274,4472.6,4472.5,0.001]
[1758373421843,6.47493274,4472.6,4472.5,0.001]
[1758373422873,6.24353274,4472.6,4472.5,0.001]
[1758373425563,6.48393274,4472.6,4472.5,0.001]
[1758373436599,6.24353274,4472.6,4472.5,0.001]